bitfinex/quotes_SOLUSD_20250731
["timestamp","ask_amount","ask_price","bid_price","bid_amount"]
[1753966951097,3.7403172,179.4,179.39,5.68312753]
[1753966951801,3.7403172,179.4,179.39,11.25757426]
[1753966952573,3.7403172,179.4,179.39,10.59757426]
[1753966953789,0.03,179.4,179.39,10.59757426]
[1753966953978,3.7403172,179.4,179.39,10.59757426]
[1753966954296,4.4103172,179.4,179.35,0.72]
[1753966954515,4.3803172,179.39,179.37,5.02312753]
[1753966954695,0.03,179.4,179.37,5.02312753]
[1753966954878,0.67,179.38,179.37,5.02312753]
[1753966955578,4.38096501,179.38,179.37,5.02312753]
[1753966955876,0.67,179.38,179.37,5.02312753]
[1753966956077,4.38096501,179.38,179.37,5.02312753]
[1753966956307,4.38096501,179.39,179.37,10.59819582]
[1753966956506,3.71096501,179.38,179.37,5.57506829]
[1753966956877,0.03,179.4,179.37,5.57506829]
[1753966956878,151.01096501,179.39,179.37,5.57506829]
[1753966957080,3.71096501,179.38,179.37,5.57506829]
[1753966957506,3.71096501,179.38,179.36,5.57537912]
[1753966957833,147.3,179.39,179.37,5.02312753]
[1753966958114,147.3,179.39,179.38,5.08312753]
[1753966958277,151.01455393,179.39,179.38,5.08312753]
[1753966958675,151.01455393,179.39,179.38,5.74312753]
[1753966959516,147.3,179.39,179.38,11.31788502]
[1753966960584,151.01682122,179.39,179.38,11.31788502]
[1753966964612,151.01682122,179.39,179.38,10.65788502]
[1753966965689,151.68682122,179.39,179.38,5.08312753]
[1753966966106,151.68682122,179.39,179.38,0.06]
[1753966967694,9.96126795,179.39,179.38,0.06]
[1753966967996,14.98439548,179.39,179.35,0.06]
[1753966968203,43.48682122,179.38,179.35,5.08312753]
[1753966968399,4.38682122,179.37,179.35,5.08312753]
[1753966968602,4.38682122,179.36,179.35,5.08312753]
[1753966968907,4.38682122,179.36,179.35,0.06]
[1753966969903,54.08532787,179.36,179.35,0.06]
[1753966970094,58.73396998,179.36,179.35,0.06]
[1753966970611,59.59724721,179.36,179.35,0.06]
[1753966970991,54.9486051,179.36,179.35,0.06]
[1753966971193,59.59441672,179.36,179.35,0.06]
[1753966971898,66.21131672,179.36,179.35,0.06]
[1753966972499,66.21131672,179.36,179.33,0.2]
[1753966972500,42.78468397,179.34,179.33,0.2]
[1753966972701,105.92447093,179.34,179.33,0.2]
[1753966972914,106.62447093,179.34,179.33,0.2]
[1753966973794,112.20047182,179.34,179.33,0.2]
[1753966974213,106.01369456,179.34,179.33,0.2]
[1753966975938,117.47888656,179.34,179.33,0.2]
[1753966976302,113.3539947,179.34,179.33,0.2]
[1753966976502,109.22910284,179.34,179.33,0.2]
[1753966977208,113.85440115,179.34,179.33,0.2]
[1753966977402,64.24269808,179.34,179.33,0.2]
[1753966977714,146.9,179.31,179.24,0.7]
[1753966977912,5.88640476,179.29,179.24,6.58640476]
[1753966978235,43.49850456,179.28,179.24,6.58640476]
[1753966978439,6.58640476,179.27,179.22,11.46613916]
[1753966978641,192.58640476,179.26,179.22,0.7]
[1753966978799,186.7,179.26,179.21,11.46639503]
[1753966978998,0.7,179.25,179.21,11.46639503]
[1753966979303,39.1,179.24,179.21,12.16639503]
[1753966979605,39.1,179.24,179.22,6.58640476]
[1753966979806,39.1,179.24,179.22,0.7]
[1753966980221,39.1,179.24,179.21,11.46639503]
[1753966980415,39.1,179.24,179.22,0.7]
[1753966980628,39.1,179.24,179.22,6.58640476]
[1753966981431,39.1,179.24,179.21,5.57999027]
[1753966981432,39.1,179.24,179.21,11.46639503]
[1753966981603,39.1,179.24,179.21,12.16639503]
[1753966982336,39.1,179.24,179.22,6.58640476]
[1753966983521,39.1,179.24,179.22,5.88640476]
[1753966984533,39.1,179.24,179.22,12.16611812]
[1753966985339,39.12,179.25,179.23,12.16576846]
[1753966985509,186.02,179.26,179.24,5.88640476]
[1753966985920,186.02,179.26,179.23,6.2793637]
[1753966986127,186.02,179.26,179.24,5.88640476]
[1753966987334,186.72,179.26,179.24,5.88640476]
[1753966987534,186.72,179.26,179.23,6.2793637]
[1753966987847,186.72,179.26,179.24,5.88640476]
[1753966988017,147.6,179.26,179.24,5.88640476]
[1753966988219,186.72,179.26,179.24,5.88640476]
[1753966988421,186.02,179.26,179.25,5.88640476]
[1753966988628,146.9,179.26,179.25,5.88640476]
[1753966989036,146.9,179.26,179.25,6.58640476]
[1753966990541,39.12,179.3,179.25,12.16520531]
[1753966990718,39.12,179.3,179.29,5.88640476]
[1753966991225,39.82,179.3,179.28,5.88640476]
[1753966991534,0.7,179.29,179.27,5.88640476]
[1753966992040,192.60640476,179.28,179.21,0.7]
[1753966992228,147.6,179.27,179.21,0.7]
[1753966992537,50.58501948,179.26,179.21,11.46645051]
[1753966992914,0.7,179.25,179.21,11.46645051]
[1753966993142,39.12,179.24,179.21,11.46645051]
[1753966993343,0.7,179.23,179.21,5.88640476]
[1753966993645,0.7,179.23,179.19,7.78640074]
[1753966993847,0.7,179.23,179.2,5.88640476]
[1753966994841,0.7,179.23,179.21,5.88640476]
[1753966995227,39.12,179.24,179.22,5.88640476]
[1753966998147,39.12,179.24,179.21,6.27999304]
[1753966998351,39.12,179.24,179.22,5.88640476]
[1753966998352,146.9,179.23,179.22,5.88640476]
[1753967001654,146.9,179.23,179.22,5.94640476]
[1753967002036,147.59,179.23,179.22,5.94640476]
[1753967002337,147.59,179.23,179.22,0.06]
[1753967004250,0.69,179.23,179.22,0.06]
[1753967005946,4.37874686,179.23,179.22,5.94640476]
[1753967006459,4.37874686,179.23,179.22,0.06]
[1753967006956,43.49874686,179.23,179.22,5.94640476]
[1753967007624,3.68874686,179.23,179.22,5.94640476]
[1753967007851,42.80874686,179.23,179.22,5.94640476]
[1753967008048,42.80874686,179.23,179.22,0.06]
[1753967008751,43.49874686,179.23,179.22,0.06]
[1753967008953,42.80874686,179.23,179.22,0.06]
[1753967009452,42.80874686,179.23,179.22,6.65640476]
[1753967011259,42.80874686,179.23,179.22,12.23613916]
[1753967012058,42.80874686,179.23,179.22,0.06]
[1753967012359,42.80874686,179.23,179.22,5.94640476]
[1753967013035,43.49874686,179.23,179.22,5.94640476]
[1753967013551,42.80874686,179.23,179.22,11.52613916]
[1753967013752,42.80874686,179.23,179.22,12.23613916]
[1753967014249,42.80874686,179.23,179.22,6.3497344]
[1753967014445,42.80874686,179.23,179.22,12.23613916]
[1753967015247,3.68874686,179.23,179.22,12.23613916]
[1753967015651,3.68874686,179.23,179.22,5.94640476]
[1753967016153,4.37874686,179.23,179.22,5.94640476]
[1753967016831,43.49874686,179.23,179.22,5.94640476]
[1753967018061,42.80874686,179.23,179.22,5.94640476]
[1753967018247,42.80874686,179.23,179.22,11.52613916]
[1753967018454,42.80874686,179.23,179.22,12.23613916]
[1753967019755,43.49874686,179.23,179.22,0.06]
[1753967020762,48.12404517,179.23,179.22,0.06]
[1753967021267,48.12404517,179.23,179.2,0.06]
[1753967021268,54.9645747,179.23,179.2,0.06]
[1753967021434,14.91444197,179.22,179.2,0.06]
[1753967021635,53.34444197,179.21,179.2,0.06]
[1753967021850,54.03444197,179.21,179.2,0.06]
[1753967022076,49.38515162,179.21,179.2,0.06]
[1753967022377,31.88640476,179.18,179.13,5.88640476]
[1753967022582,48.69515162,179.17,179.12,5.88640476]
[1753967022872,5.58191459,179.15,179.11,5.88640476]
[1753967023168,43.49874686,179.14,179.11,5.88640476]
[1753967023337,43.49874686,179.14,179.09,5.58371687]
[1753967023338,4.37874686,179.13,179.1,5.88640476]
[1753967023540,42.80874686,179.12,179.1,5.88640476]
[1753967023754,3.71412914,179.11,179.09,0.71]
[1753967023945,39.12,179.12,179.1,5.88640476]
[1753967024146,39.12,179.12,179.09,0.71]
[1753967024350,39.81,179.12,179.09,5.88640476]
[1753967024557,39.12,179.12,179.1,5.88640476]
[1753967024943,39.12,179.12,179.11,5.88640476]
[1753967026344,0.69,179.14,179.11,5.88640476]
[1753967026547,39.81,179.13,179.11,5.88640476]
[1753967027662,0.69,179.12,179.1,5.88640476]
[1753967027863,147.3,179.11,179.1,5.88640476]
[1753967028166,186.42,179.11,179.1,5.88640476]
[1753967028370,186.42,179.11,179.1,0.71]
[1753967028574,186.42,179.11,179.1,5.88640476]
[1753967028868,186.42,179.11,179.1,18.06628244]
[1753967028869,147.3,179.11,179.1,18.06628244]
[1753967029072,147.3,179.11,179.1,34.85096641]
[1753967029275,39.12,179.16,179.11,16.78468397]
[1753967029566,0.69,179.19,179.15,5.88640476]
[1753967029770,39.12,179.17,179.16,5.88640476]
[1753967029945,42.82422347,179.17,179.16,5.88640476]
[1753967030145,3.70422347,179.17,179.16,5.88640476]
[1753967030346,39.12,179.17,179.16,5.88640476]
[1753967031273,39.8,179.17,179.14,5.88640476]
[1753967031476,3.70331233,179.16,179.14,5.88640476]
[1753967031776,39.8,179.15,179.11,0.72]
[1753967031953,39.12,179.14,179.11,0.72]
[1753967032153,39.12,179.14,179.12,0.72]
[1753967033388,39.8,179.14,179.13,5.88640476]
[1753967034975,45.38222956,179.14,179.11,5.88640476]
[1753967035171,44.70222956,179.14,179.1,5.88640476]
[1753967035436,0.68,179.13,179.11,5.88640476]
[1753967035550,39.12,179.12,179.09,6.30373214]
[1753967035755,39.12,179.12,179.11,5.88640476]
[1753967037256,39.12,179.12,179.11,6.60640476]
[1753967037973,39.12,179.14,179.11,6.60640476]
[1753967038159,39.8,179.14,179.13,5.88640476]
[1753967038883,39.8,179.14,179.12,5.88640476]
[1753967039179,39.12,179.14,179.09,6.30371768]
[1753967039385,0.68,179.13,179.1,5.88640476]
[1753967040290,0.68,179.12,179.11,5.88640476]
[1753967040532,0.68,179.13,179.11,5.88640476]
[1753967040798,39.12,179.14,179.12,5.88640476]
[1753967041101,0.68,179.13,179.12,5.88640476]
[1753967041577,0.68,179.13,179.11,5.88640476]
[1753967041779,0.68,179.12,179.1,5.88640476]
[1753967042081,45.38222855,179.14,179.09,5.58375693]
[1753967042398,0.68,179.13,179.11,5.88640476]
[1753967042586,147.3,179.11,179.1,5.88640476]
[1753967042788,0.68,179.12,179.1,5.88640476]
[1753967042991,147.3,179.1,179.07,6.30440833]
[1753967043204,147.3,179.1,179.09,5.88640476]
[1753967045707,147.3,179.1,179.09,6.60640476]
[1753967047101,147.3,179.1,179.09,5.88640476]
[1753967048594,39.12,179.11,179.09,5.88640476]
[1753967048795,39.12,179.11,179.1,5.88640476]
[1753967048994,39.12,179.11,179.08,0.72]
[1753967049196,39.12,179.11,179.1,5.88640476]
[1753967054009,39.12,179.11,179.08,0.72]
[1753967054197,39.12,179.11,179.1,5.88640476]
[1753967054396,39.12,179.11,179.08,0.72]
[1753967054718,147.3,179.1,179.08,0.72]
[1753967055914,147.3,179.1,179.09,5.88640476]
[1753967057724,147.3,179.1,179.08,0.72]
[1753967057922,147.3,179.1,179.09,5.88640476]
[1753967060114,147.3,179.1,179.09,6.60640476]
[1753967060297,147.3,179.1,179.09,5.88640476]
[1753967060719,147.3,179.1,179.07,6.30418106]
[1753967060900,147.3,179.1,179.09,5.88640476]
[1753967062225,147.3,179.09,179.05,5.88640476]
[1753967062396,192.30640476,179.08,179.03,5.88640476]
[1753967062601,5.88640476,179.06,179.01,5.88640476]
[1753967062814,190.84126688,179.05,179.01,5.88640476]
[1753967062998,0.72,179.04,179.01,5.88640476]
[1753967063329,0.72,179.03,179.01,5.88640476]
[1753967063812,39.84,179.03,179.01,5.88640476]
[1753967064120,147.3,179.05,179.02,12.1323728]
[1753967064333,39.12,179.08,179.04,5.88640476]
[1753967064627,147.3,179.1,179.07,5.88640476]
[1753967064803,42.8429235,179.09,179.08,0.66]
[1753967064998,3.7029235,179.09,179.08,6.54640476]
[1753967065228,3.7029235,179.09,179.08,5.88640476]
[1753967066029,4.4229235,179.09,179.08,5.88640476]
[1753967066753,4.4229235,179.09,179.03,0.66]
[1753967066919,5.88640476,179.07,179.02,5.88640476]
[1753967067102,190.8629235,179.08,179.01,0.66]
[1753967067103,43.5629235,179.06,179.03,5.88640476]
[1753967067304,153.18640476,179.08,179.03,5.88640476]
[1753967067305,43.5629235,179.05,179.03,5.88640476]
[1753967067519,39.86,179.05,179.03,5.88640476]
[1753967068322,39.86,179.05,179.04,5.88640476]
[1753967068503,43.56484356,179.05,179.04,5.88640476]
[1753967068706,42.84484356,179.05,179.04,5.88640476]
[1753967069606,3.70484356,179.05,179.02,5.58581418]
[1753967069806,3.70484356,179.05,179.04,5.88640476]
[1753967070017,39.14,179.06,179.05,5.58503211]
[1753967070200,39.2,179.07,179.05,12.13143687]
[1753967070399,147.3,179.08,179.04,5.58528235]
[1753967070621,4.42428062,179.07,179.04,5.88640476]
[1753967070852,4.42428062,179.07,178.99,16.78468397]
[1753967070853,190.92428062,179.06,178.98,0.66]
[1753967071028,151.72428062,179.05,178.99,5.58680196]
[1753967071346,42.90428062,179.04,179.01,5.88640476]
[1753967071541,0.72,179.03,178.99,5.88640476]
[1753967071732,39.92,179.02,179.0,5.88640476]
[1753967071935,147.3,179.01,179.0,5.88640476]
[1753967072130,147.3,179.01,179.0,11.47299693]
[1753967072335,147.3,179.01,179.0,12.13299693]
[1753967077068,147.3,179.01,179.0,18.01940169]
[1753967077347,147.3,179.01,179.0,34.80408566]
[1753967077529,147.3,179.05,179.0,34.80408566]
[1753967077857,147.3,179.05,179.04,5.88640476]
[1753967078147,0.72,179.11,179.04,6.54640476]
[1753967078352,3.70543967,179.1,179.05,0.66]
[1753967078654,43.62543967,179.09,179.05,0.66]
[1753967078848,0.72,179.08,179.05,0.66]
[1753967079156,3.70559711,179.08,179.04,5.58534405]
[1753967079325,0.72,179.07,179.04,5.58534405]
[1753967079526,3.70559711,179.08,179.06,5.88640476]
[1753967079759,3.70559711,179.08,179.03,5.58558717]
[1753967079928,42.90559711,179.07,179.05,5.88640476]
[1753967080134,4.42559711,179.06,179.05,5.88640476]
[1753967081051,148.02,179.09,179.05,6.54640476]
[1753967081232,186.5,179.09,179.08,5.88640476]
[1753967081435,190.20673488,179.09,179.01,6.54640476]
[1753967081758,157.61313964,179.08,179.01,5.58616659]
[1753967081940,42.92673488,179.07,179.03,5.88640476]
[1753967082137,42.92673488,179.07,179.02,5.88640476]
[1753967082138,151.72673488,179.06,179.02,5.88640476]
[1753967082339,26.0,179.08,178.96,0.66]
[1753967082340,5.88640476,179.03,178.96,0.66]
[1753967082530,190.94472299,179.02,178.98,5.88640476]
[1753967082726,0.72,179.01,178.97,5.88640476]
[1753967082934,186.52,179.0,178.96,5.88640476]
[1753967083153,0.72,178.99,178.97,5.88640476]
[1753967083332,0.72,178.98,178.97,5.88640476]
[1753967083738,187.24,179.0,178.97,11.47393339]
[1753967083935,0.72,178.99,178.97,11.47393339]
[1753967084260,0.72,178.98,178.96,5.88640476]
[1753967084438,0.72,178.97,178.93,16.98468397]
[1753967084637,0.72,178.97,178.96,5.88640476]
[1753967084847,39.24,178.98,178.96,5.88640476]
[1753967085040,39.24,178.98,178.97,5.88640476]
[1753967085349,147.3,179.0,178.97,5.88640476]
[1753967085652,0.72,178.98,178.97,5.88640476]
[1753967085860,4.41893341,178.98,178.97,5.88640476]
[1753967086156,4.41893341,178.98,178.93,0.2]
[1753967086457,187.28,178.97,178.96,5.88640476]
[1753967086657,187.28,178.97,178.93,5.78874074]
[1753967086854,186.56,178.97,178.96,5.88640476]
[1753967087244,147.3,178.96,178.93,0.2]
[1753967087434,39.24,178.95,178.93,0.2]
[1753967087634,39.96,178.95,178.94,5.88640476]
[1753967087838,39.96,178.95,178.93,0.2]
[1753967088063,0.72,178.94,178.93,6.08640476]
[1753967088662,39.24,178.95,178.93,6.08640476]
[1753967088862,39.96,178.95,178.94,5.88640476]
[1753967089282,39.96,178.95,178.93,6.08640476]
[1753967089443,0.72,178.94,178.93,0.2]
[1753967089646,0.72,178.94,178.93,6.08640476]
[1753967090060,0.72,178.94,178.93,0.2]
[1753967090273,0.72,178.94,178.93,6.08640476]
[1753967092168,0.72,178.94,178.93,0.2]
[1753967092343,0.72,178.94,178.93,6.08640476]
[1753967092539,39.24,178.95,178.93,6.08640476]
[1753967092744,39.24,178.95,178.94,5.88640476]
[1753967093241,39.89,178.95,178.94,5.88640476]
[1753967093838,39.89,178.95,178.93,0.2]
[1753967094041,39.24,178.95,178.94,5.88640476]
[1753967094566,39.89,178.95,178.94,0.06]
[1753967094747,45.47815311,178.95,178.94,0.06]
[1753967095973,39.89,178.95,178.94,0.06]
[1753967096170,45.47815311,178.95,178.94,0.06]
[1753967096572,49.16065271,178.95,178.94,0.06]
[1753967096869,55.04705747,178.95,178.94,0.06]
[1753967097662,49.16065271,178.95,178.94,0.06]
[1753967098952,55.04705747,178.95,178.94,0.06]
[1753967099364,56.70085747,178.95,178.94,0.06]
[1753967099551,16.78468397,178.94,178.93,0.2]
[1753967099757,31.63015133,178.94,178.93,0.2]
[1753967099981,66.40358833,178.94,178.93,0.2]
[1753967100285,71.99205373,178.94,178.93,0.2]
[1753967101479,26.0,178.9,178.85,11.47767484]
[1753967101678,26.0,178.9,178.86,5.88640476]
[1753967101679,190.17960385,178.89,178.86,5.88640476]
[1753967101889,147.75,178.94,178.88,5.88640476]
[1753967102079,3.68035924,178.93,178.89,0.69]
[1753967102264,3.68035924,178.93,178.86,5.590965]
[1753967102265,39.42,178.92,178.86,5.590965]
[1753967102466,39.42,178.92,178.89,0.69]
[1753967102988,39.42,178.92,178.9,0.69]
[1753967103180,39.42,178.92,178.91,0.69]
[1753967103362,39.42,178.92,178.91,6.57640476]
[1753967103569,147.1,178.94,178.91,6.57640476]
[1753967103763,39.44,178.93,178.86,19.5683775]
[1753967103990,39.44,178.93,178.88,0.69]
[1753967103991,39.44,178.92,178.88,0.69]
[1753967104373,39.44,178.92,178.89,5.88640476]
[1753967104572,0.65,178.91,178.89,5.88640476]
[1753967104788,39.44,178.9,178.89,5.88640476]
[1753967106820,40.09,178.9,178.85,5.59098525]
[1753967107116,150.98159815,178.89,178.87,5.88640476]
[1753967107266,39.44,178.88,178.87,5.88640476]
[1753967108106,39.44,178.88,178.86,0.69]
[1753967108277,40.09,178.88,178.86,5.88640476]
[1753967108476,39.44,178.88,178.86,5.88640476]
[1753967110380,39.44,178.88,178.85,5.59117514]
[1753967110602,39.44,178.88,178.86,5.88640476]
[1753967111084,39.44,178.88,178.85,6.28117514]
[1753967111475,39.44,178.88,178.86,5.88640476]
[1753967112296,40.09,178.88,178.86,5.88640476]
[1753967112998,0.65,178.87,178.83,3.29838651]
[1753967113187,0.65,178.87,178.84,11.47789888]
[1753967113394,39.4,178.86,178.84,5.88640476]
[1753967113573,39.4,178.86,178.83,8.89028311]
[1753967113574,147.3,178.85,178.83,8.20028311]
[1753967114079,147.3,178.85,178.84,5.88640476]
[1753967114278,147.3,178.85,178.83,14.08668787]
[1753967114471,147.3,178.85,178.83,2.60838651]
[1753967114882,40.05,178.84,178.83,2.60838651]
[1753967115109,43.72892363,178.84,178.83,2.60838651]
[1753967115399,43.07892363,178.84,178.83,8.49479127]
[1753967115644,43.72892363,178.84,178.83,8.49479127]
[1753967115782,43.72892363,178.84,178.83,2.60838651]
[1753967116183,43.07892363,178.84,178.83,2.60838651]
[1753967116404,43.07892363,178.84,178.83,8.49479127]
[1753967116702,43.72892363,178.84,178.83,2.60838651]
[1753967117402,43.72892363,178.84,178.83,2.66838651]
[1753967119814,43.07892363,178.84,178.83,2.66838651]
[1753967120186,43.72892363,178.84,178.83,2.66838651]
[1753967121528,10.21532839,178.84,178.83,2.66838651]
[1753967121726,10.21532839,178.84,178.83,14.81669419]
[1753967121727,3.67892363,178.84,178.83,14.81669419]
[1753967121902,6.282284,178.88,178.83,20.70309895]
[1753967122106,43.21864893,178.87,178.86,5.88640476]
[1753967122618,43.89864893,178.87,178.84,5.88640476]
[1753967122789,3.67864893,178.86,178.84,5.88640476]
[1753967123090,39.54,178.85,178.84,0.67]
[1753967123611,43.22214061,178.85,178.84,0.67]
[1753967124007,4.36214061,178.85,178.83,2.66838651]
[1753967124199,43.22214061,178.84,178.83,2.66838651]
[1753967124399,43.90214061,178.84,178.83,2.66838651]
[1753967125595,48.81373085,178.84,178.83,2.66838651]
[1753967125797,54.70013561,178.84,178.83,2.66838651]
[1753967126301,59.32669861,178.84,178.83,2.66838651]
[1753967127529,59.32669861,178.84,178.75,5.59440559]
[1753967127530,54.70013561,178.84,178.75,5.59440559]
[1753967127814,54.70013561,178.84,178.79,5.88640476]
[1753967127815,150.98214061,178.83,178.79,5.88640476]
[1753967128004,190.50214061,178.82,178.79,5.88640476]
[1753967128200,3.68214061,178.81,178.79,5.88640476]
[1753967128413,3.68214061,178.8,178.79,5.88640476]
[1753967129917,43.20214061,178.8,178.78,5.88640476]
[1753967130110,3.69350444,178.79,178.78,5.88640476]
[1753967131226,3.69350444,178.79,178.71,5.59565776]
[1753967131227,147.3,178.78,178.71,5.59565776]
[1753967131396,43.19350444,178.77,178.75,5.88640476]
[1753967131733,3.69350444,178.76,178.74,5.88640476]
[1753967131888,3.69350444,178.75,178.74,5.88640476]
[1753967132292,3.69350444,178.75,178.71,5.59565776]
[1753967132522,3.69258617,178.74,178.71,5.59565776]
[1753967132693,39.5,178.77,178.73,5.88640476]
[1753967132898,3.69259573,178.76,178.74,5.88640476]
[1753967133111,3.69259573,178.75,178.74,5.88640476]
[1753967134018,3.69259573,178.75,178.71,5.59565776]
[1753967134220,39.5,178.77,178.74,5.88640476]
[1753967134394,3.6893972,178.76,178.74,5.88640476]
[1753967134599,3.6893972,178.75,178.74,11.48112334]
[1753967135197,3.6893972,178.75,178.74,5.59471858]
[1753967135400,147.3,178.78,178.74,17.3675281]
[1753967135594,147.3,178.78,178.77,5.88640476]
[1753967135933,13.79757726,178.87,178.77,5.88640476]
[1753967135934,4.61544524,178.85,178.77,5.88640476]
[1753967136102,190.53059546,178.84,178.83,5.88640476]
[1753967136300,190.55059546,178.84,178.82,5.88640476]
[1753967136502,3.69059546,178.83,178.82,5.88640476]
[1753967136917,3.69059546,178.83,178.77,1.6022]
[1753967137118,190.55059546,178.82,178.78,5.88640476]
[1753967137323,3.69059546,178.81,178.78,5.88640476]
[1753967137532,43.25059546,178.8,178.73,5.59503161]
[1753967137719,3.69059546,178.79,178.76,5.88640476]
[1753967138018,43.27059546,178.78,178.76,5.88640476]
[1753967138325,43.27059546,178.78,178.75,5.88640476]
[1753967138326,3.69059546,178.77,178.75,5.88640476]
[1753967138503,3.69059546,178.76,178.72,1.5795]
[1753967138834,45.17375293,178.78,178.75,5.88640476]
[1753967139135,45.17375293,178.78,178.73,5.88640476]
[1753967139136,3.68953181,178.77,178.73,5.88640476]
[1753967139432,43.26953181,178.76,178.72,5.88640476]
[1753967139630,3.68953181,178.75,178.72,5.88640476]
[1753967139847,43.26953181,178.74,178.72,5.88640476]
[1753967140131,39.58,178.74,178.72,5.88640476]
[1753967140322,39.58,178.74,178.73,5.88640476]
[1753967140658,26.0,178.79,178.73,5.88640476]
[1753967140935,43.24767361,178.78,178.71,19.58480218]
[1753967141137,3.68767361,178.77,178.71,19.58480218]
[1753967141342,3.68768551,178.77,178.71,5.59565776]
[1753967141539,39.56,178.78,178.71,5.59565776]
[1753967141702,3.68750724,178.77,178.71,5.59565776]
[1753967141908,39.56,178.76,178.71,5.59565776]
[1753967142316,39.56,178.76,178.73,5.88640476]
[1753967142541,39.56,178.76,178.74,5.88640476]
[1753967142731,39.56,178.76,178.73,5.88640476]
[1753967142936,3.68712735,178.75,178.7,10.59585921]
[1753967143334,39.56,178.76,178.73,5.88640476]
[1753967143844,45.15410259,178.76,178.73,5.88640476]
[1753967144344,147.3,178.75,178.73,5.88640476]
[1753967144646,147.3,178.74,178.73,5.88640476]
[1753967145016,147.3,178.74,178.72,5.88640476]
[1753967145238,147.3,178.73,178.71,5.88640476]
[1753967145626,147.3,178.72,178.7,5.0]
[1753967145944,147.3,178.72,178.71,5.88640476]
[1753967147616,147.3,178.76,178.75,5.88640476]
[1753967148017,147.3,178.76,178.74,5.88640476]
[1753967148317,147.3,178.76,178.71,5.59565776]
[1753967148516,147.3,178.76,178.75,5.88640476]
[1753967149323,152.89410912,178.76,178.74,5.88640476]
[1753967149528,147.3,178.76,178.74,5.88640476]
[1753967152168,147.3,178.75,178.73,5.59482752]
[1753967152450,147.3,178.75,178.74,5.88640476]
[1753967153237,147.3,178.75,178.71,5.59565776]
[1753967153431,30.61544524,178.81,178.71,5.59565776]
[1753967153432,147.3,178.74,178.71,5.59565776]
[1753967153759,147.3,178.74,178.73,5.88640476]
[1753967153929,147.3,178.74,178.73,11.48143637]
[1753967154343,147.3,178.74,178.73,5.59503161]
[1753967154652,147.3,178.74,178.73,11.48143637]
[1753967155155,147.3,178.74,178.73,5.88640476]
[1753967155951,147.3,178.74,178.71,5.59563889]
[1753967156130,147.3,178.74,178.73,5.88640476]
[1753967156450,147.3,178.74,178.72,5.88640476]
[1753967156822,186.9,178.74,178.72,5.88640476]
[1753967159156,186.9,178.74,178.7,10.59588558]
[1753967159334,39.6,178.74,178.7,5.0]
[1753967159540,3.69330673,178.73,178.7,5.0]
[1753967159740,39.6,178.72,178.7,10.88640476]
[1753967159939,39.6,178.72,178.7,5.0]
[1753967160167,45.48640476,178.72,178.7,5.0]
[1753967160338,39.6,178.72,178.7,5.0]
[1753967160694,3.69307007,178.71,178.7,5.0]
[1753967161059,15.17513259,178.71,178.7,5.0]
[1753967161231,3.69307007,178.71,178.7,5.0]
[1753967161431,9.28872783,178.71,178.7,5.0]
[1753967162228,15.17513259,178.71,178.7,5.0]
[1753967163071,9.28872783,178.71,178.7,5.0]
[1753967163272,29.69307007,178.71,178.7,5.0]
[1753967163442,69.31307007,178.71,178.7,5.06]
[1753967163641,80.79513259,178.71,178.7,5.06]
[1753967164563,105.28051656,178.71,178.7,5.06]
[1753967164758,109.8959618,178.71,178.7,5.06]
[1753967164950,82.60942783,178.71,178.7,5.06]
[1753967165141,88.49583259,178.71,178.7,5.06]
[1753967165465,69.31307007,178.71,178.7,5.06]
[1753967165766,74.94872783,178.71,178.7,5.06]
[1753967166262,69.35307007,178.71,178.7,5.06]
[1753967166462,43.35307007,178.71,178.7,5.06]
[1753967170150,43.35307007,178.71,178.7,10.94640476]
[1753967170564,3.69307007,178.71,178.7,10.94640476]
[1753967170870,39.64,178.72,178.7,5.06]
[1753967171044,43.33307007,178.71,178.7,10.94640476]